Workbook

Sheet Bila_D
B2: Konzern-Bilanz (IFRS)
B3: zum 31. März 2016
C4: 2016-03-31 | D4: 2015-09-30
C5: Tsd. € | D5: Tsd. €
B6: AKTIVA
B7: Langfristige Vermögenswerte
B8: Geschäfts- oder Firmenwert | C8: 163707 | D8: 164345
B9: Sonstige immaterielle Vermögenswerte | C9: 47031 | D9: 45365
B10: Sachanlagen | C10: 64713 | D10: 67381
B11: At-Equity Beteiligungen | C11: 0 | D11: 0
B12: Ausleihungen an At-Equity Beteiligungen | C12: 0 | D12: 0
B13: Sonstige Ausleihungen | C13: 2128 | D13: 1349
B14: Beteiligungen | C14: 124 | D14: 124
B15: Latente Ertragsteuern | C15: 78573 | D15: 72985
B16: Langfristige Forderungen aus Lieferungen und Leistungen | C16: 8943 | D16: 8919
B17: Sonstige langfristige Vermögenswerte | C17: 2706 | D17: 2524
C18: =+SUM(C8:C17) -> 367925 | D18: =+SUM(D8:D17) -> 362992
B19: Kurzfristige Vermögenswerte
B20: Vorräte | C20: 201650 | D20: 189411
B21: Forderungen aus Lieferungen und Leistungen | C21: 173766 | D21: 184817
B22: Forderungen gegen nahe stehende Unternehmen | C22: 71716 | D22: 58900
B23: Forderungen aus Finanzausgleich | C23: 332656 | D23: 301412
B24: Steuererstattungsansprüche | C24: 2275 | D24: 2224
B25: Sonstige kurzfristige finanzielle Vermögenswerte | C25: 10437 | D25: 7336
B26: Sonstige kurzfristige nicht-finanzielle Vermögenswerte | C26: 17523 | D26: 19157
B27: Zahlungsmittel und Zahlungsmitteläquivalente | C27: 6760 | D27: 13041
C28: =+SUM(C20:C27) -> 816783 | D28: =+SUM(D20:D27) -> 776298
C29: =+C28+C18 -> 1184708 | D29: =+D28+D18 -> 1139290
B30: PASSIVA
B31: Eigenkapital
B32: Gezeichnetes Kapital | C32: 81310 | D32: 81310
B33: Kapitalrücklage | C33: 313863 | D33: 313863
B34: Gewinnrücklagen | C34: 438898 | D34: 390903
B35: Sonstige Bestandteile des Eigenkapitals | C35: -42971 | D35: -32218
B36: Eigenkapital ohne Anteile nicht-beherrschender Gesellschafter | C36: =+SUM(C32:C35) -> 791100 | D36: =+SUM(D32:D35) -> 753858
B37: Ausgleichsposten für Anteile nicht-beherrschender Gesellschafter | C37: 47207 | D37: 43592
C38: =+C36+C37 -> 838307 | D38: =+D36+D37 -> 797450
B39: Langfristige Schulden
B40: Pensionsrückstellungen und ähnliche Verpflichtungen | C40: 81675 | D40: 64865
B41: Andere langfristige Rückstellungen | C41: 4542 | D41: 4467
B42: Langfristige finanzielle Verbindlichkeiten | C42: 1188 | D42: 916
B43: Langfristige Leasingverbindlichkeiten | C43: 7595 | D43: 8929
B44: Sonstige langfristige nicht-finanzielle Verbindlichkeiten | C44: 6314 | D44: 7490
B45: Latente Ertragsteuern | C45: 11044 | D45: 11783
C46: =+SUM(C40:C45) -> 112358 | D46: =+SUM(D40:D45) -> 98450
B47: Kurzfristige Schulden
B48: Kurzfristige Rückstellungen | C48: 22210 | D48: 24360
B49: Kurzfristige abgegrenzte Verbindlichkeiten | C49: 68116 | D49: 65447
B50: Kurzfristige finanzielle Verbindlichkeiten | C50: 8752 | D50: 3707
B51: Kurzfristiger Anteil langfristiger Leasingverbindlichkeiten | C51: 2796 | D51: 2806
B52: Verbindlichkeiten aus Lieferungen und Leistungen | C52: 39983 | D52: 42859
B53: Kurzfristige Verbindlichkeiten aus Ertragsteuern | C53: 10979 | D53: 6214
B54: Verbindlichkeiten gegenüber nahe stehenden Unternehmen | C54: 16480 | D54: 23454
B55: Verbindlichkeiten aus Finanzausgleich | C55: 31918 | D55: 36043
B56: Sonstige kurzfristige nicht-finanzielle Verbindlichkeiten | C56: 32809 | D56: 38500
C57: =+SUM(C48:C56) -> 234043 | D57: =+SUM(D48:D56) -> 243390
C58: =+C38+C46+C57 -> 1184708 | D58: =+D38+D46+D57 -> 1139290
B59: Der nachfolgende Konzernanhang ist integraler Bestandteil des ungeprüften Konzernabschlusses.

Sheet Bilanzanalyse (hidden)
A1: Abw. Dec./ Sep | C1: Begründung | D1: davon erklärt | E1: Differenz
A2: =#REF! ->  | B2: Geschäfts- oder Firmenwert | C2: Zugang IMEX 7,432 Mio. | D2: =7432 -> 7432 | E2: =A2-D2 -> 
A3: =#REF! ->  | B3: Immaterielle Vermögenswerte | C3: Zugang IMEX 5,551 Mio.
A4: =#REF! ->  | B4: Sachanlagen | C4: Zugang CZM AG 4,0 Mio. vor Afa (hauptsächlich Olymp ca. 3,2 Mio.); Übernahme Mietgeräte bei CZM VG aus Umlaufvermögen (+1,2 Mio.)
A5: =#REF! ->  | B5: Forderungen aus Lieferungen und Leistungen | C5: hierin enthalten 2,9 Mio. Alcon-Lizenzen, Cash-Zahlung erfolgt erst im Januar
A6: =#REF! ->  | B6: Forderungen gegen nahe stehende Unternehmen | C6: v.a. Umsatzanstieg Q1 CZM AG (Umsatz je Quartal: GJ 10/11 --> 113 Mio., Q1 11/12 --> 141 Mio.)
A7: =#REF! ->  | B7: Sonstige kurzfristige finanzielle Vermögenswerte | C7: Anstieg aus CZM Inc. aufgrund der Umgliederung der Kreditkartenforderungen von kurzf. Nicht-finanz. Vw in kurzf. Finanz. Vermögenswerte (+1,3 Mio.). Anstieg CZM AG (+0,3 Mio.) für Zinsabgrenzungen (COBA + HVB) | D7: =1300+300 -> 1600 | E7: =A7-D7 -> 
A8: =#REF! ->  | B8: Sonstige kurzfristige nicht-finanzielle Vermögenswerte | C8: Kompensation des Umgliederungseffektes USA durch CZM F (+0,6 Mio., u.a. UST, ARAP), CZM AG (+0,4 Mio.)
A9: 1207 | B9: Andere langfristige Rückstellungen | C9: IMEX earn out Anteil +2,218 Mio.; Kompensation durch CZM AG (-915 TEUR ATZ, -142 TEUR Verbrauch ERA RST und sonstiges) | D9: =(2.218-0.915-0.142)*1000 -> 1161 | E9: 46
A10: =#REF! ->  | B10: Kurzfristige Rückstellungen | C10: IMEX earn out Anteil +2,149 Mio., Abgrenzung KöSteuer +1,5 Mio. (CZM AG), RST für Gewährleistungen pauschal +0,55 Mio. (CZM AG), Konzernrückstellung Q1 für Projekttehmen +0,85 Mio., Auflösung RST für Bonuszahlung im Dezember + RST-Bildung für geschätzte Logistikosten (CZM Japan), Zuführung RST CZM Inc. für Ferien, Warenrückgabe und Gewährleistung | D10: =(2.149+1.5+0.55+0.85)*1000 -> 5049
A11: =#REF! ->  | B11: Kurzfristige abgegrenzte Verbindlichkeiten | C11: Auszahlung Renumeration für FY 10/11 CZM VG -0,8 Mio. (hier auch Reduzierung RST für ausstehende Rechnung enthalten) und USA -3,1 Mio. (u.a. MBO-Bonus, Super-Bonus); z.T. Kompensation/ Anstieg durch unterjährige Rechnungsabgrenzungen + Risiken CZM AG +1,36 Mio. (davon 0,6 Mio. Konzern-RST bzw. 0,3 Mio. CZM-Verbundene, die im Konzern wieder eliminiert werden); CZM SAS + FCI -04 Mio. Rückgang Personalverbindlichkeiten aufgrund erfolgter Bonuszahlung im Dez 11 | D11: =(-0.8-3.1+1.36-0.3-0.4)*1000 -> -3240
A12: =#REF! ->  | B12: Kurzfristige finanzielle Verbindlichkeiten | C12: Devisentermingeschäfte CZM AG +3,3 Mio. EUR, Reduzierung ausstehende Checks USA aufgrund von Lieferantenzahlungen -0,6 Mio. | D12: =(3.3-0.6)*1000 -> 2700
A13: =#REF! ->  | B13: Verbindlichkeiten aus Lieferungen und Leistungen | C13: CZM AG: Umstellung Lieferantenzahlungen auf tägliche Zahlungen nach Fälligkeit ab Q1 2012 (-3,9 Mio.)
A14: =#REF! ->  | B14: Sonstige kurzfristige nicht-finanzielle Verbindlichkeiten | C14: CZM AG: Lohnsteuerverbindlichkeiten +2,0 Mio. (Prämienzahlung 31.12.) , Lizenzen Alcon +2,2 Mio. Erhaltene Anzahlungen -1,0 Mio., CZM VG: Erhöhung "erhaltene Anzahlungen" und Lohnsteuerverbindlichkeiten zum 31.12. (+0,6 Mio.) CZM Inc: Service-RST (+0,5 Mio.), abgegrenzter Service-Ertrag (+0,4 Mio.) CZM Japan: Bonuszahlung Dez 11 (+0,4 Mio.), Kundenvorauszahlungen OPMI Lumera + Vario (+0,5 Mio.), U-Anteil soziale Sicherheit (+0,2 Mio.) CZM Spanien: abgegrenter Ertrag (+0,3 Mio.) | D14: =(2+2.2-1+0.6+0.5+0.4+0.4+0.5+0.2+0.3)*1000 -> 6100
